fUSD/lending_fUSD_20251105
["ID","MTS","AMOUNT","RATE_DAILY","PERIOD"]
[393203888,1762315832026,-1607.25344077,0.00020826,2]
[393203889,1762315832037,-2947.01655923,0.00020826,2]
[393203890,1762315832048,-178.19806557,0.00020979,2]
[393203891,1762315832057,-1993.92783824,0.00021079,3]
[393203892,1762315832067,-1200.0,0.00021112,2]
[393203893,1762315832076,-300.0,0.00021113,2]
[393203894,1762315832085,-300.0,0.00021113,2]
[393203895,1762315832095,-1200.0,0.00021114,2]
[393203896,1762315832104,-500.0,0.00021117,2]
[393203897,1762315832113,-500.0,0.00021117,2]
[393203898,1762315832122,-551.21,0.00021117,2]
[393203899,1762315832131,-500.0,0.00021117,2]
[393203900,1762315832141,-500.0,0.00021117,2]
[393203901,1762315832150,-412.60310062,0.00021117,2]
[393203902,1762315832159,-4554.27,0.0002155,2]
[393203903,1762315832169,-662.19108019,0.00021827,2]
[393203904,1762315832178,-1993.92783825,0.00022106,3]
[393203905,1762315832188,-1600.0,0.00022205,2]
[393203906,1762315832197,-9999.99,0.00022206,2]
[393203907,1762315832206,-1359.07,0.00022206,2]
[393203908,1762315832215,-5794.0,0.00022206,2]
[393203909,1762315832225,-12025.44,0.00022206,2]
[393203910,1762315832235,-150.99,0.00022206,2]
[393203912,1762315832244,-999.99,0.00022206,2]
[393203914,1762315832255,-9999.99,0.00022206,2]
[393203915,1762315832264,-1186.14,0.00022206,2]
[393203916,1762315832273,-499.99,0.00022206,2]
[393203917,1762315832283,-9999.99,0.00022206,2]
[393203919,1762315832292,-250.0,0.00022206,2]
[393203921,1762315832307,-338.67426883,0.00022206,2]
[393203923,1762315832316,-195.0,0.00022206,2]
[393203925,1762315832325,-300.0,0.00022206,2]
[393203927,1762315832334,-552.1894013,0.00022273,2]
[393203929,1762315832345,-500.0,0.00022273,2]
[393203931,1762315832355,-500.0,0.00022273,2]
[393203933,1762315832364,-529.41889361,0.00022273,2]
[393203935,1762315832374,-269.52066072,0.00022273,2]
[393203937,1762315832383,-500.0,0.00022273,2]
[393203939,1762315832396,-500.0,0.00022273,2]
[393203941,1762315832405,-500.0,0.00022273,2]
[393203943,1762315832415,-500.0,0.00022273,2]
[393203945,1762315832424,-505.72776797,0.00022273,2]
[393203947,1762315832433,-4554.27,0.00022274,2]
[393203949,1762315832442,-1000.0,0.00022821,2]
[393203951,1762315832451,-1000.0,0.00022821,2]
[393203952,1762315832460,-500.0,0.00022833,2]
[393203953,1762315832469,-420.0,0.00022964,2]
[393203954,1762315832478,-490.0,0.00022965,2]
[393203955,1762315832487,-4554.27,0.00022997,2]
[393203956,1762315832497,-1501.0,0.00023071,2]
[393203957,1762315832506,-1680.0,0.00023071,2]
[393203958,1762315832515,-149590.5487969,0.00023196,2]
[393203959,1762315832527,-840.82494719,0.00023196,2]
[393203960,1762315832540,-2341.41234543,0.00023196,2]
[393203961,1762315832551,-506.58,0.00023196,2]
[393203962,1762315832562,-15867.25837296,0.00023196,2]
[393203963,1762315832574,-8084.58288275,0.00023196,2]
[393203964,1762315832585,-525.74328535,0.00023196,2]
[393203965,1762315832596,-1367.74106718,0.00023196,2]
[393203966,1762315832607,-578.1981307,0.00023196,2]
[393203967,1762315832618,-2531.95584394,0.00023196,2]
[393203968,1762315832629,-1603.77847889,0.00023196,2]
[393203969,1762315837810,-288.79009786,0.00023195,2]
[393203970,1762315837823,-500.0,0.00023195,2]
[393203971,1762315837833,-500.0,0.00023195,2]
[393203972,1762315837843,-500.0,0.00023195,2]
[393203973,1762315837855,-500.0,0.00023195,2]
[393203974,1762315837866,-205.55356448,0.00023195,2]
[393203975,1762315837875,-500.0,0.00023195,2]
[393203976,1762315837885,-500.0,0.00023195,2]
[393203977,1762315837893,-500.0,0.00023195,2]
[393203978,1762315837902,-500.0,0.00023195,2]
[393203979,1762315837911,-500.0,0.00023195,2]
[393203980,1762315837920,-500.0,0.00023195,2]
[393203981,1762315837930,-500.0,0.00023195,2]
[393203982,1762315837938,-500.0,0.00023195,2]
[393203983,1762315837948,-500.0,0.00023195,2]
[393203984,1762315837957,-1685.59409218,0.00023196,2]
[393203985,1762315837979,-2698.26467723,0.00023196,2]
[393203986,1762315837994,-509.57715147,0.00023196,2]
[393203987,1762315838005,-10369.95990714,0.00023196,2]
[393203988,1762315838030,-4543.17523489,0.00023196,2]
[393203989,1762315838067,-471.87366345,0.00023196,2]
[393203990,1762315838079,-9831.40616057,0.00023196,2]
[393203992,1762315838091,-298.9755723,0.00023196,2]
[393204001,1762315839923,-3145.03568805,0.00023196,2]
[393204002,1762315839934,-107433.05596174,0.00023196,2]
[393204003,1762315840036,-4720.35773969,0.00023196,2]
[393204004,1762315840046,-1500.0,0.00023368,2]
[393204005,1762315840057,-2899.64225935,0.00023721,2]
[393204006,1762315840067,-10727.95,0.00023721,2]
[393204007,1762315840079,-2942.70191724,0.00023721,2]
[393204008,1762315840090,-917.73061187,0.00023721,2]
[393204009,1762315840249,-1083.4,0.00023721,2]
[393204011,1762315843071,-1207.33257474,0.00023721,2]
[393204012,1762315843083,-263.58446541,0.00023721,2]
[393204013,1762315843095,-254.16849995,0.00023721,2]
[393204014,1762315843106,-442.3191871,0.00023721,2]
[393204015,1762315843117,-402.80055483,0.00023721,2]
[393204016,1762315843136,-50801.63902109,0.00023721,2]
[393204017,1762315843146,-4554.27,0.00023721,2]
[393204018,1762315843156,-165.86637429,0.0002388,2]
[393204019,1762315843165,-1000.0,0.00023916,2]
[393204020,1762315843175,-4554.27,0.00024445,2]
[393204021,1762315843185,-1000.0,0.00024713,2]
[393204022,1762315843194,-501.0816036,0.000249,2]
[393204023,1762315843204,-500.0,0.000249,2]
[393204024,1762315843213,-500.73063442,0.000249,2]
[393204025,1762315843223,-151.0,0.00024918,2]
[393204026,1762315843235,-171.35667674,0.00024918,2]
[393204027,1762315843244,-500.0,0.00024932,2]
[393204028,1762315843253,-500.0,0.00024932,2]
[393204029,1762315843263,-502.91660732,0.00024933,2]
[393204030,1762315843272,-4554.27,0.00025169,2]
[393204031,1762315843282,-2351.0,0.00025213,2]
[393204032,1762315843291,-477.76462643,0.0002586,2]
[393204033,1762315843303,-4554.27,0.00025892,2]
[393204034,1762315843313,-500.0,0.00026156,2]
[393204035,1762315843322,-4554.27,0.00026616,2]
[393204037,1762315843505,-570.6,0.00026676,2]
[393204038,1762315843514,-4554.27,0.0002734,2]
[393204039,1762315843523,-9038.86,0.00027397,2]
[393204040,1762315843532,-3292.0,0.00027553,2]
[393204041,1762315843542,-150.0,0.00027728,2]
[393204042,1762315843552,-155.09,0.00027735,2]
[393204043,1762315843561,-1000.0,0.00027803,2]
[393204044,1762315843571,-1491.05119239,0.0002794,2]
[393204045,1762315843581,-4554.27,0.00028064,2]
[393204046,1762315843591,-279.6991,0.00028438,2]
[393204047,1762315843600,-8486.96262815,0.000285,2]
[393204048,1762315843612,-2652.45282556,0.000285,2]
[393204049,1762315843622,-4203.44784671,0.00028538,2]
[393204050,1762315843636,-931.09196623,0.00028538,2]
[393204051,1762315843647,-626.82797415,0.00028538,2]
[393204052,1762315843657,-621.06284059,0.000286,5]
[393204053,1762315843665,-500.0,0.000286,5]
[393204054,1762315843675,-500.0,0.0002896,2]
[393204055,1762315843684,-2280.9122147,0.00029572,2]
[393204056,1762315843694,-4020.11449388,0.00029572,2]
[393204057,1762315843706,-4838.38874513,0.00029572,2]
[393204058,1762315843715,-240.76083994,0.00029714,2]
[393204059,1762315843724,-500.0,0.00029836,2]
[393204060,1762315843734,-158.80832011,0.00029942,4]
[393204061,1762315843748,-47.77273188,0.00029942,4]
[393204062,1762315843757,-7444.85441572,0.0003,2]
[393204063,1762315843766,-1001.80990282,0.0003,14]
[393204064,1762315843776,-1640.0,0.0003011,2]
[393204065,1762315843785,-8871.21556306,0.00030643,2]
[393204084,1762315846280,-1317.11636507,0.00030643,2]
[393204085,1762315846292,-951.08352558,0.00030643,2]
[393204086,1762315846303,-24.95242551,0.00030773,2]
[393204108,1762316009400,10000.01,0.0002,2]
[393204114,1762316229264,150.0,0.00028374,120]
[393204133,1762316814338,5000.00882993,0.000162,5]
[393204138,1762316871508,5000.00117007,0.00015,2]
[393204139,1762316871532,10000.01,0.00015,2]
[393204140,1762316871555,10000.01,0.00015,2]
[393204141,1762316871582,6244.22845094,0.00015,2]
[393204142,1762316871605,6244.22845094,0.00015,2]
[393204143,1762316871627,6244.22845094,0.00015,2]
[393204144,1762316871651,6244.22845094,0.00015,2]
[393204145,1762316871673,6244.22845094,0.00015,2]
[393204146,1762316871696,6244.22845094,0.00015,2]
[393204147,1762316871718,6244.22845094,0.00015,2]
[393204148,1762316871743,6244.22845094,0.00015,2]
[393204149,1762316871765,6244.22845094,0.00015,2]
[393204150,1762316871787,6244.22845094,0.00015,2]
[393204151,1762316871811,5000.0,0.00015,2]
[393204152,1762316871841,5000.0,0.00015,2]
[393204153,1762316872337,-195.87357988,0.00015,2]
[393204155,1762316893535,-9385.22978366,0.00015,2]
[393204156,1762316899592,-10000.01,0.00015,2]
[393204162,1762317020637,-300.0,0.0001485,2]
[393204163,1762317022292,-496.99827417,0.0001485,2]
[393204164,1762317024429,-332.5342894,0.0001485,2]
[393204165,1762317026527,-305.35706028,0.0001485,2]
[393204166,1762317029224,-185.643281,0.0001485,2]
[393204190,1762317032192,-250.94664815,0.0001485,2]
[393204191,1762317032203,-500.0,0.00014925,2]
[393204192,1762317032214,-195.0,0.00014962,2]
[393204193,1762317032224,-1200.0,0.00014999,2]
[393204194,1762317032235,-300.0,0.00014999,2]
[393204195,1762317032245,-6108.44527023,0.00015,2]
[393204196,1762317032255,-13079.31949131,0.00015,3]
[393204197,1762317032264,-200.16337338,0.00016119,2]
[393204198,1762317032273,-300.0,0.00016416,2]
[393204199,1762317032283,-195.0,0.00016418,2]
[393204200,1762317032298,-1680.0,0.00016499,2]
[393204201,1762317032307,-300.0,0.000165,2]
[393204202,1762317032317,-983.0,0.00016998,2]
[393204203,1762317032326,-500.0,0.00016999,2]
[393204204,1762317032336,-500.0,0.00016999,2]
[393204205,1762317032346,-500.0,0.00016999,2]
[393204206,1762317032355,-500.0,0.00016999,2]
[393204207,1762317032366,-500.0,0.00016999,2]
[393204208,1762317032376,-550.0,0.00016999,2]
[393204209,1762317032386,-250.0,0.00017,2]
[393204210,1762317032396,-500.0,0.00017,2]
[393204211,1762317032405,-500.0,0.00017,2]
[393204212,1762317032415,-500.0,0.00017,2]
[393204213,1762317032425,-500.0,0.00017,2]
[393204214,1762317032434,-500.0,0.00017,2]
[393204215,1762317032443,-500.0,0.00017,2]
[393204216,1762317032454,-500.0,0.00017,2]
[393204217,1762317032464,-500.0,0.00017973,2]
[393204219,1762317032474,-500.0,0.00017999,2]
[393204221,1762317032486,-245.06150716,0.00017999,2]
[393204222,1762317032496,-500.0,0.00017999,2]
[393204223,1762317032506,-202.78443337,0.00017999,2]
[393204224,1762317032515,-500.0,0.00017999,2]
[393204225,1762317032525,-500.0,0.00017999,2]
[393204228,1762317032535,-500.0,0.00017999,2]
[393204230,1762317032544,-500.0,0.00017999,2]
[393204232,1762317032553,-4670.59288534,0.00018,2]
[393204235,1762317032566,-145362.34985096,0.00018,2]
[393204240,1762317032578,-19760.69916306,0.00018,2]
[393204243,1762317032596,-261884.34323601,0.00018,2]
[393204245,1762317032609,-1354.80378798,0.00018,2]
[393204247,1762317032622,-356.0,0.00018,2]
[393204249,1762317032633,-3734.0,0.00018,2]
[393204250,1762317032644,-819.78286601,0.00018,2]
[393204251,1762317032657,-356.01681061,0.00018,2]
[393204257,1762317038116,-1619.7181,0.00018,2]
[393204258,1762317038173,-7930.90527456,0.00018,2]
[393204259,1762317038185,-41142.1513959,0.00018,2]
[393204260,1762317038197,-20816.30085263,0.00018,2]
[393204261,1762317038208,-21315.75351883,0.00018,2]
[393204262,1762317038220,-7197.06642511,0.00018,2]
[393204263,1762317038231,-499.47535571,0.00018,2]
[393204264,1762317038247,-404.8994073,0.00018,2]
[393204290,1762317040205,-350.58392895,0.00018,2]
[393204291,1762317040429,-500.0,0.00017999,2]
[393204292,1762317040439,-34.0,0.00018,2]
[393204293,1762317040451,-4915.36419839,0.00018,2]
[393204294,1762317040461,-700.0,0.00018104,2]
[393204295,1762317040472,-2351.0,0.00018149,2]
[393204296,1762317040481,-650.47894218,0.00018343,2]
[393204297,1762317040490,-8088.01840385,0.00018443,2]
[393204298,1762317040499,-214.28399805,0.00018543,2]
[393204299,1762317040509,-150.42,0.00018754,2]
[393204300,1762317040519,-1001.0,0.00019964,2]
[393204301,1762317040528,-151.0,0.00019997,2]
[393204302,1762317040537,-19999.99,0.0002,2]
[393204303,1762317040547,-22965.65615317,0.0002,2]
[393204304,1762317040556,-4655.60579236,0.0002,2]
[393204305,1762317040566,-19499.40771482,0.0002,5]
[393204306,1762317040575,-8300.0,0.0002,4]
[393204307,1762317040585,-3950.0,0.0002,2]
[393204308,1762317040594,-455.30778764,0.0002,20]
[393204309,1762317040603,-2036.80447549,0.0002,14]
[393204310,1762317040617,-1435.05785341,0.0002,2]
[393204311,1762317040626,-500.0,0.00020087,2]
[393204312,1762317040635,-8088.0184038,0.00020614,2]
[393204313,1762317040645,-150.42,0.00020629,2]
[393204314,1762317040654,-214.28399797,0.00020723,2]
[393204315,1762317040663,-650.47894217,0.00021174,2]
[393204316,1762317040672,-500.39073057,0.000215,2]
[393204317,1762317040683,-500.0,0.00021917,2]
[393204318,1762317040693,-500.0,0.00021917,2]
[393204319,1762317040702,-202.36480166,0.00022462,2]
[393204320,1762317040711,-500.0,0.00022462,2]
[393204321,1762317040720,-151.0,0.00022462,2]
[393204322,1762317040730,-151.0,0.00022462,2]
[393204323,1762317040739,-151.0,0.00022462,2]
[393204324,1762317040748,-151.0,0.00022462,2]
[393204325,1762317040757,-151.0,0.00022462,2]
[393204326,1762317040766,-151.0,0.00022462,2]
[393204327,1762317040775,-174.19067893,0.00022462,2]
[393204328,1762317040783,-151.0,0.00022462,2]
[393204329,1762317040792,-151.0,0.00022462,2]
[393204330,1762317040801,-151.0,0.00022462,2]
[393204331,1762317040810,-151.0,0.00022462,2]
[393204332,1762317040819,-151.0,0.00022462,2]
[393204333,1762317040831,-151.0,0.00022462,2]
[393204334,1762317040840,-151.0,0.00022462,2]
[393204335,1762317040849,-151.0,0.00022462,2]
[393204336,1762317040858,-151.0,0.00022462,2]
[393204337,1762317040867,-151.0,0.00022462,2]
[393204338,1762317040876,-151.0,0.00022462,2]
[393204339,1762317040885,-151.0,0.00022462,2]
[393204340,1762317040895,-151.0,0.00022462,2]
[393204341,1762317040904,-151.0,0.00022462,2]
[393204342,1762317040913,-151.0,0.00022462,2]
[393204343,1762317040922,-151.0,0.00022462,2]
[393204344,1762317040932,-151.0,0.00022462,2]
[393204345,1762317040941,-1637.41,0.00022476,2]
[393204346,1762317040949,-10000.01,0.00022476,2]
[393204347,1762317040958,-216.22,0.00022476,2]
[393204348,1762317040967,-5512.76,0.00022476,2]
[393204349,1762317040976,-150.99,0.00022476,2]
[393204350,1762317040985,-9999.99,0.00022476,2]
[393204351,1762317040994,-9999.99,0.00022476,2]
[393204352,1762317041003,-9999.99,0.00022476,2]
[393204353,1762317041012,-150.42,0.00022504,2]
[393204354,1762317041021,-500.0,0.00022523,2]
[393204355,1762317041030,-8088.0184038,0.00022785,2]
[393204356,1762317041039,-214.28399797,0.00022903,2]
[393204357,1762317041047,-628.19271841,0.00023,7]
[393204358,1762317041056,-525.09248982,0.0002301,2]
[393204359,1762317041065,-500.0,0.00023195,2]
[393204360,1762317041075,-11562.81343481,0.00023333,7]
[393204361,1762317041084,-162.06676561,0.0002334,2]
[393204362,1762317041093,-504.48,0.0002372,2]
[393204363,1762317041102,-1010.61467738,0.00024,2]
[393204364,1762317041111,-773.15965514,0.00024,2]
[393204365,1762317041121,-3600.0,0.00024,2]
[393204366,1762317041130,-16047.19172971,0.00024,2]
[393204367,1762317041140,-200.0,0.00024,2]
[393204368,1762317041149,-650.47894217,0.00024006,2]
[393204369,1762317041158,-417.5457055,0.0002421,2]
[393204370,1762317041167,-3658.78635368,0.0002421,2]
[393204371,1762317041177,-500.0,0.00024274,2]
[393204372,1762317041186,-19590.82,0.00024358,2]
[393204373,1762317041195,-150.42,0.0002438,2]
[393204374,1762317041205,-2751.0,0.00024474,2]
[393204375,1762317041214,-591.3525063,0.0002465,2]
[393204376,1762317041223,-475.65,0.00024658,2]
[393204377,1762317041232,-150.0,0.00024873,2]
[393204378,1762317041241,-80881.4484301,0.000249,3]
[393204379,1762317041250,-500.0,0.00024932,2]
[393204380,1762317041259,-8088.0184038,0.00024956,2]
[393204381,1762317041268,-601.46356491,0.00025,2]
[393204382,1762317041277,-1729.03653482,0.00025,2]
[393204383,1762317041287,-735.7447283,0.00025,2]
[393204384,1762317041296,-165.24457208,0.00025,2]
[393204385,1762317041305,-214.28399797,0.00025083,2]
[393204386,1762317041314,-501.72880029,0.00025327,2]
[393204387,1762317041323,-250.0,0.00025421,2]
[393204388,1762317041332,-13480.241405,0.00025869,3]
[393204389,1762317041342,-20087.29625479,0.00025879,2]
[393204390,1762317041351,-350.0,0.00025968,2]
[393204391,1762317041360,-593.35020443,0.0002599,2]
[393204392,1762317041370,-4469.38720675,0.00026,2]
[393204393,1762317041379,-4138.65,0.00026,2]
[393204394,1762317041387,-213.82965862,0.00026,2]
[393204395,1762317041396,-160.95307683,0.00026,2]
[393204396,1762317041406,-4070.2655,0.00026093,2]
[393204397,1762317041416,-6641.826,0.00026093,2]
[393204398,1762317041426,-150.42,0.00026255,2]
[393204399,1762317041435,-13480.241405,0.0002639,3]
[393204400,1762317041445,-27149.90272033,0.000264,2]
[393204401,1762317041454,-531.80242415,0.00026516,2]
[393204402,1762317041463,-875.6747711,0.0002663,2]
[393204403,1762317041472,-650.47894217,0.00026837,2]
[393204404,1762317041482,-875.6747711,0.00026903,2]
[393204405,1762317041491,-500.0,0.00026932,2]
[393204406,1762317041500,-500.0,0.0002694,2]
[393204407,1762317041510,-218.84510152,0.00026948,2]
[393204408,1762317041519,-250.0,0.00027,2]
[393204409,1762317041528,-1021.02311256,0.00027,2]
[393204410,1762317041537,-530.0,0.00027,2]
[393204411,1762317041547,-8088.0184038,0.00027127,2]
[393204412,1762317041556,-218.84510152,0.00027236,2]
[393204413,1762317041565,-214.28399797,0.00027263,2]
[393204414,1762317041575,-875.6747711,0.00027329,2]
[393204415,1762317041585,-442.57857532,0.0002739,2]
[393204416,1762317041594,-475.65,0.00027404,2]
[393204417,1762317041604,-218.84510152,0.00027519,2]
[393204418,1762317041617,-875.6747711,0.00027665,2]
[393204419,1762317041627,-620.19,0.00027671,30]
[393204420,1762317041636,-13480.241405,0.00027753,3]
[393204421,1762317041645,-2500.0,0.00027756,2]
[393204422,1762317041655,-500.0,0.00027762,2]
[393204423,1762317041664,-7368.2521,0.00027766,2]
[393204424,1762317041673,-1000.0,0.00027766,2]
[393204425,1762317041682,-1000.0,0.00027766,2]
[393204426,1762317041695,-733.2109,0.00027766,2]
[393204427,1762317041707,-218.84510152,0.00027805,2]
[393204428,1762317041717,-53920.9656201,0.00027846,3]
[393204429,1762317041726,-150.41,0.00027846,2]
[393204430,1762317041736,-150.41,0.00027846,2]
[393204431,1762317041744,-921.24425616,0.00027846,2]
[393204432,1762317041754,-150.0,0.00027848,2]
[393204433,1762317041763,-875.6747711,0.00027852,2]
[393204434,1762317041772,-151.0,0.00027853,7]
[393204435,1762317041781,-357.85,0.00027856,3]
[393204436,1762317041790,-215683.86248,0.00027856,3]
[393204437,1762317041799,-150.41,0.00027856,2]
[393204438,1762317041808,-150.41,0.00027856,2]
[393204439,1762317041817,-150.41,0.00027856,2]
[393204440,1762317041826,-150.41,0.00027856,2]
[393204441,1762317041835,-500.0,0.00027865,2]
[393204442,1762317041844,-500.0,0.00027865,2]
[393204443,1762317041853,-774.14868907,0.00027866,2]
[393204444,1762317041862,-33254.3761,0.00027866,2]
[393204445,1762317041871,-195483.16934042,0.00027866,2]
[393204446,1762317041883,-374.7975232,0.00027866,2]
[393204447,1762317042097,-845.30055278,0.00027866,2]
[393204448,1762317042108,-1081.0,0.00027866,2]
[393204457,1762317043224,-101790.69999999,0.00027866,2]
[393204458,1762317043497,-21712.59494538,0.00027866,2]
[393204459,1762317043508,-293.29439703,0.00027866,2]
[393204488,1762317046480,-2291.9026174,0.00027866,2]
[393204489,1762317046491,-336.58099995,0.00027866,2]
[393204490,1762317046590,-1080.0,0.00027866,2]
[393204511,1762317234281,1234.7,0.00030137,120]
[393204515,1762317291866,220.07510407,0.00027965,120]
[393204516,1762317300722,282.61408945,0.00030137,120]
[393204528,1762317649294,500.0,0.00027865,120]
[393204529,1762317649669,500.0,0.00027865,120]
[393204530,1762317649906,500.0,0.00027955,120]
[393204531,1762317650495,500.0,0.00027965,120]
[393204541,1762317756852,500.0,0.00027831,120]
[393204548,1762317949164,485.01,0.00013699,2]
[393204551,1762318009202,500.0,0.00027721,120]
[393204552,1762318009426,554.69671231,0.00027731,120]
[393204568,1762318232240,-300.0,0.00016982,2]
[393204569,1762318232250,-1200.0,0.00016982,2]
[393204570,1762318232259,-24525.00383626,0.00016983,2]
[393204571,1762318232270,-1816.84829324,0.00016983,2]
[393204573,1762318232279,-250.0,0.00016991,2]
[393204574,1762318232288,-300.0,0.00016991,2]
[393204576,1762318232298,-195.0,0.00016991,2]
[393204577,1762318232308,-300.0,0.00017396,2]
[393204578,1762318232317,-300.0,0.00017396,2]
[393204579,1762318232326,-351.95332739,0.00017396,2]
[393204580,1762318232335,-550.0,0.00017998,2]
[393204581,1762318232345,-500.0,0.00017999,2]
[393204582,1762318232354,-500.0,0.00017999,2]
[393204583,1762318232363,-500.0,0.00017999,2]
[393204584,1762318232372,-500.0,0.00017999,2]
[393204585,1762318232381,-179.75162294,0.00017999,2]
[393204586,1762318232390,-500.0,0.00017999,2]
[393204587,1762318232399,-500.0,0.00017999,2]
[393204588,1762318232413,-500.0,0.00017999,2]
[393204589,1762318232422,-500.0,0.00017999,2]
[393204590,1762318232431,-500.0,0.00017999,2]
[393204591,1762318232440,-500.0,0.00017999,2]
[393204592,1762318232449,-500.0,0.00017999,2]
[393204593,1762318232458,-420.0,0.00018548,2]
[393204594,1762318232467,-1680.0,0.00018641,2]
[393204595,1762318232476,-500.0,0.00018673,2]
[393204596,1762318232485,-250.0,0.00018681,2]
[393204597,1762318232494,-300.0,0.00018681,2]
[393204598,1762318232503,-195.0,0.00018681,2]
[393204599,1762318232512,-710.11579561,0.00018681,2]
[393204600,1762318232521,-244.30267499,0.00018681,2]
[393204601,1762318232530,-1660.41,0.00018699,2]
[393204602,1762318232539,-801.66286238,0.00018699,2]
[393204603,1762318232550,-267.35,0.00018699,2]
[393204604,1762318232561,-367.44,0.00018699,2]
[393204606,1762318232572,-8563.53713762,0.00018699,2]
[393204608,1762318232581,-642.31,0.00018699,2]
[393204609,1762318232590,-4187.41,0.00018699,2]
[393204610,1762318232599,-4961.17,0.00018699,2]
[393204611,1762318232608,-9999.99,0.00018699,2]
[393204612,1762318232617,-150.99,0.00018699,2]
[393204613,1762318232626,-150.99,0.00018699,2]
[393204614,1762318232636,-500.0,0.0001871,2]
[393204615,1762318232645,-500.40594089,0.0001871,2]
[393204616,1762318232654,-500.0,0.0001871,2]
[393204617,1762318232663,-500.0,0.0001905,2]
[393204618,1762318232672,-935.0,0.00019078,2]
[393204619,1762318232681,-500.0,0.00019258,2]
[393204620,1762318232690,-500.0,0.0001935,2]
[393204621,1762318232700,-500.0,0.0001935,2]
[393204622,1762318232709,-524.46659852,0.00019409,2]
[393204623,1762318232718,-183.00505375,0.00019664,2]
[393204624,1762318232727,-1000.0,0.00019898,2]
[393204625,1762318232737,-985.96504137,0.00019898,2]
[393204626,1762318232747,-500.86745626,0.00020024,2]
[393204627,1762318232756,-485.01,0.00020187,2]
[393204628,1762318232765,-1589.0,0.0002023,2]
[393204629,1762318232774,-587.0,0.00020259,2]
[393204630,1762318232783,-1500.0,0.00020446,2]
[393204631,1762318232802,-2220.0,0.00020461,2]
[393204632,1762318232812,-150.0,0.00020508,2]
[393204633,1762318232821,-500.0,0.00020508,2]
[393204634,1762318232830,-150.0,0.00020508,2]
[393204635,1762318232840,-150.0,0.00020508,2]
[393204636,1762318232849,-500.0,0.00020508,2]
[393204637,1762318232859,-150.0,0.00020508,2]
[393204638,1762318232868,-500.0,0.00020508,2]
[393204639,1762318232878,-150.0,0.00020508,2]
[393204640,1762318232887,-150.0,0.00020508,2]
[393204641,1762318232896,-500.0,0.00020508,2]
[393204642,1762318232906,-151.0,0.00020508,2]
[393204643,1762318232915,-151.0,0.00020508,2]
[393204644,1762318232924,-151.0,0.00020508,2]
[393204645,1762318232934,-151.0,0.00020508,2]
[393204646,1762318232945,-151.0,0.00020508,2]
[393204647,1762318232954,-151.0,0.00020508,2]
[393204648,1762318232964,-151.0,0.00020508,2]
[393204649,1762318232973,-151.0,0.00020508,2]
[393204650,1762318232983,-151.0,0.00020508,2]
[393204651,1762318232992,-151.0,0.00020508,2]
[393204652,1762318233001,-200.0,0.00020508,2]
[393204653,1762318233010,-151.0,0.00020508,2]
[393204654,1762318233021,-151.0,0.00020508,2]
[393204655,1762318233031,-151.0,0.00020508,2]
[393204656,1762318233039,-151.0,0.00020508,2]
[393204657,1762318233050,-151.0,0.00020508,2]
[393204658,1762318233059,-151.0,0.00020508,2]
[393204659,1762318233069,-151.0,0.00020508,2]
[393204660,1762318233078,-151.0,0.00020508,2]
[393204661,1762318233087,-151.0,0.00020508,2]
[393204662,1762318233096,-151.0,0.00020508,2]
[393204663,1762318233105,-151.0,0.00020508,2]
[393204664,1762318233114,-151.0,0.00020508,2]
[393204665,1762318233123,-151.0,0.00020508,2]